Cogmind - Beta 15 @@@ ROGUE MODE // 2025.09.08 @ 17:54:35 Player: lucasboxerhead Result: Destroyed by L-31 Rogue with Katana Performance ------------- Evolutions (1) 500 Regions Visited (3) 600 Robots Destroyed (39) 195 Value Destroyed (936) 936 Prototype IDs (3) 60 Alien Tech Used (0) 0 Bonus (0) 0 TOTAL SCORE: 2291 Bonus ------- None Cogmind --------- Core Integrity 0/400 Matter 300/300 Energy 89/100 System Corruption 1% Temperature Cool (0) Movement Treading (160) Location -9/Storage Parts ------- > --- POWER (1) -------- (None) > --- PROPULSION (4) --- Improved Treads Improved Treads Improved Treads Improved Treads > --- UTILITY (2) ------ Medium Storage Unit > --- WEAPON (2) ------- Beam Rifle Improved Assault Rifle > --- INVENTORY (10) --- Improved Flight Unit Improved Flight Unit Improved Flight Unit Improved Flight Unit Improved Sensor Array Targeting Computer Drone Bay (2/2) Beam Rifle Rocket Launcher Rocket Launcher Peak State ------------ > --- POWER ------------ Light Nuclear Core > --- PROPULSION ------- Improved Flight Unit Improved Flight Unit Improved Flight Unit Improved Flight Unit > --- UTILITY ---------- Heat Sink Small Storage Unit > --- WEAPON ----------- Beam Rifle Improved Assault Rifle > --- INVENTORY -------- Light Nuclear Core Medium Storage Unit Improved Sensor Array Targeting Computer Drone Bay Drone Bay Beam Rifle Grenade Launcher [Rating: 24] Favorites ----------- Power Ion Engine Engine Ion Engine Power Core Light Nuclear Core Propulsion Light Treads Treads Light Treads Flight Unit Improved Flight Unit Utility Small Storage Unit Device Heat Sink Storage Small Storage Unit Weapon Small Laser Energy Gun Small Laser Ballistic Gun Light Assault Rifle Ballistic Cannon Light Cannon Launcher Grenade Launcher Build | -11 -10 -9 -9 ------- Run | Yrd Mat Mat Sto Slots Evolved 2 | . . 2 . Power . | . . . . Propulsion 2 | . . 2 . Utility . | . . . . Weapon . | . . . . Parts Attached 39 | 6 6 21 6 Power 6 | 1 1 3 1 Engine 4 | 1 1 2 . Core 2 | . . 1 1 Reactor . | . . . . Propulsion 15 | 2 2 7 4 Treads 11 | 2 2 3 4 Leg . | . . . . Wheel . | . . . . Hover . | . . . . Flight 4 | . . 4 . Utility 7 | 1 1 4 1 Device 5 | . 1 4 . Storage 2 | 1 . . 1 Processor . | . . . . Hackware . | . . . . Protection . | . . . . Artifact . | . . . . Weapon 11 | 2 2 7 . Energy Gun 5 | . 2 3 . Energy Cannon . | . . . . Ballistic Gun 4 | 2 . 2 . Ballistic Cannon 1 | . . 1 . Launcher 1 | . . 1 . Special Weapon . | . . . . Impact Weapon . | . . . . Slashing Weapon . | . . . . Piercing Weapon . | . . . . Special Melee Weapon . | . . . . Unidentified Prototypes 3 | . . 3 . Parts Lost 12 | . . 10 2 Power 2 | . . 1 1 Propulsion 5 | . . 5 . Utility 3 | . . 2 1 Weapon 2 | . . 2 . Highest Loss Streak 8 | . . 8 2 To Critical Strikes . | . . . . Average Backups 7 | 1 6 7 8 Power . | . . . . Propulsion 1 | 1 2 1 1 Utility 1 | . . 1 3 Weapon 3 | . 2 4 2 Tool/Special . | . . . . Unused Backups 22 | . 1 12 9 Power 1 | . 1 . . Propulsion 2 | . . 2 . Utility 7 | . . 2 5 Weapon 11 | . . 7 4 Tool/Special 1 | . . 1 . Average Slot Usage (%) 93 | . 96 91 95 Engine 10 | . 14 10 . Core 1 | . . . 9 Treads 28 | . 28 31 19 Flight 8 | . . 8 22 Device 9 | . 11 8 10 Storage 12 | . 14 11 11 Energy Gun 13 | . 15 13 11 Ballistic Gun 8 | . 12 4 11 Peak Build Rating 24 | 6 7 23 24 Average Rating 10 | 4 6 10 21 On Entrance 9 | . 6 7 23 Naked Turns . | . . . . Heaviest Build 22 | 12 13 17 22 Greatest Support 92 | 40 40 80 92 Greatest Overweight (x) 2 | . . 2 . Average Overweight (x) . | . . . . Largest Inventory Capacity 10 | 8 8 8 10 Average Capacity 8 | 6 8 8 9 Most Carried 10 | 4 8 8 10 Average Carried 7 | 1 6 7 8 Final Capacity 10 | 8 8 8 10 Final Carried 10 | 4 8 8 10 Class Distribution -------------------- 43% | Mutant 39% | Scavenger-Mutant 17% | Sprinter Dominant Class ---------------- Mutant | -10/Materials Scavenger-Mutant | -9/Materials Mutant | -9/Storage Resources | -11 -10 -9 -9 ----------- Run | Yrd Mat Mat Sto Matter Collected 861 | 75 237 441 108 Remotely . | . . . . Salvage Created 1454 | . 262 859 333 Parts 86 | . 14 57 15 Haulers Intercepted 3 | . 2 1 . Recyclers Shooed 6 | . 1 5 . Parts Field Recycled . | . . . . Retrieved Matter . | . . . . Parts Self-Destructed . | . . . . Prevented . | . . . . Kills | -11 -10 -9 -9 ------- Run | Yrd Mat Mat Sto Combat Hostiles Destroyed 29 | . 3 21 5 Guns 22 | . 3 14 5 Cannons 3 | . . 3 . AOE 4 | . . 4 . Classes Destroyed 9 | . 4 4 1 Worker 1 | . . 1 . Builder 1 | . . 1 . Hauler 3 | . 2 1 . Recycler 4 | . 1 2 1 Watcher 1 | . 1 . . Swarmer 9 | . . 9 . Grunt 10 | . 3 6 1 Brawler 1 | . . . 1 Sentry 9 | . . 6 3 Best Kill Streak 6 | . 2 6 3 Combat Bots Only 5 | . 1 5 2 Max Kills in Single Turn 3 | . 1 3 1 Gunslinging . | . . . . Exploded 3 | . . 3 . Melee . | . . . . Uniques/NPCs Destroyed . | . . . . Combat | -11 -10 -9 -9 -------- Run | Yrd Mat Mat Sto Hostile Shots Fired 278 | . 44 171 63 Missed 84 | . 13 54 17 Hits 194 | . 31 117 46 Melee 6 | . . . 6 Projectile 188 | . 31 117 40 Critical Strikes 9 | . . 3 6 Damage Taken 2552 | . 334 1480 738 Core 464 | . 55 282 127 Absorbed by Shields . | . . . . Core Remaining (%) 89 | 100 78 . . Volleys Fired 136 | . 37 79 20 Largest 2 | . 2 2 2 Hottest 80 | . 80 80 79 Shots Fired 242 | . 74 128 40 Gun 229 | . 74 115 40 Cannon 10 | . . 10 . Launcher 3 | . . 3 . Special . | . . . . Kinetic 120 | . 66 34 20 Thermal 119 | . 8 91 20 Explosive 3 | . . 3 . Electromagnetic . | . . . . Robot Hit Streak 31 | . 14 8 31 Robot Miss Streak 6 | . 4 6 2 Penetration Max . | . . . . Secondary Targets 3 | . . 1 2 Max Gunslinging Chain 1 | . . 1 1 Shots Hit Robots 152 | . 51 65 36 Core Hits 73 | . 19 42 12 Critical Kills . | . . . . Critical Parts Destroyed 1 | . 1 . . Critical Strikes 3 | . 1 . 2 Burn 2 | . . . 2 Destroy 1 | . 1 . . Melee Attacks . | . . . . Impact . | . . . . Slashing . | . . . . Piercing . | . . . . Sneak Attacks . | . . . . Combat Hostiles . | . . . . Follow-up Attacks . | . . . . Damage Inflicted 2195 | . 436 1206 553 Guns 1765 | . 421 793 551 Cannons 112 | . . 112 . Explosions 294 | . . 294 . Melee . | . . . . Ramming 24 | . 15 7 2 Kinetic 960 | . 364 322 274 Thermal 917 | . 57 583 277 Explosive 294 | . . 294 . Electromagnetic . | . . . . Impact . | . . . . Slashing . | . . . . Piercing . | . . . . Highest Corruption 1 | . . . 1 Average Corruption 1 | . . . 1 Corruption Purged . | . . . . Corruption Blocked . | . . . . Overload Shots . | . . . . Overflow Damage . | . . . . Projectiles . | . . . . Explosions . | . . . . Melee . | . . . . Knockbacks 1 | . . 1 . Impact . | . . . . Kinetic 1 | . . 1 . Secondary . | . . . . Self-Inflicted Damage . | . . . . Shots . | . . . . Rammed 10 | . 4 2 4 Targets Rammed 11 | . 5 2 4 Kicked . | . . . . Crushed 1 | . 1 . . Highest Temperature 42 | . 18 42 28 Average Temperature 12 | . 10 13 9 Received Heat Transfer 873 | . 186 453 234 Siege Activations . | . . . . Martial Activations . | . . . . Shielding Activations . | . . . . Robots Disrupted . | . . . . Combat Hostiles . | . . . . Robots Corrupted . | . . . . Combat Hostiles . | . . . . Parts Fried . | . . . . Impact Corruptions . | . . . . Robots Melted . | . . . . Combat Hostiles . | . . . . Parts Melted 8 | . . 5 3 Heat Transferred 2367 | . 125 1391 851 Parts Sabotaged . | . . . . Parts Stolen . | . . . . Parts Stripped . | . . . . Power Chain Reactions . | . . . . Alert | -11 -10 -9 -9 ------- Run | Yrd Mat Mat Sto Maximum Alert Level 1 | . . 1 . Low Security (%) 79 | 100 100 57 100 Level 1 20 | . . 42 . Level 2 . | . . . . Level 3 . | . . . . Level 4 . | . . . . Level 5 . | . . . . High Security . | . . . . Max Security . | . . . . Peak Influence 298 | . 30 298 179 Initial 117 | . . . 117 Average 89 | . 6 140 135 Influence Increases 974 | . 106 676 192 Destroy 0b10 Robot/C 580 | . 60 420 100 Destroy 0b10 Robot/NC 50 | . 20 25 5 Destroy Leader 168 | . 26 92 50 Successful Hack 7 | . . . 7 Destroy Structure 19 | . . 19 . Partial Spotted 60 | . . 45 15 Lose Combat Pursuer 90 | . . 75 15 Influence Decreases 795 | . 106 397 292 Entered New Map 162 | . . . 162 Time Decay 513 | . 106 297 110 Lost Part 120 | . . 100 20 Squads Dispatched 6 | . 2 1 3 Investigation . | . . . . Extermination . | . . . . Reinforcement 5 | . 2 1 2 Assault . | . . . . Garrison 1 | . . . 1 Intercept . | . . . . Searches Triggered . | . . . . Construction Impeded . | . . . . Haulers Reinforced . | . . . . Active Scanning Responses . | . . . . Cargo Convoy Interrupts . | . . . . Stealth | -11 -10 -9 -9 --------- Run | Yrd Mat Mat Sto Distress Signals 4 | . 1 2 1 Communications Jammed . | . . . . Distress Signals . | . . . . Times Spotted 51 | . 11 30 10 Peak Tracking Total 6 | . 3 6 5 Tactical Retreats 4 | . . 3 1 Traps | -11 -10 -9 -9 ------- Run | Yrd Mat Mat Sto Traps Triggered 3 | . 2 . 1 Indirectly . | . . . . Trap Hack Attempts . | . . . . Triggered . | . . . . Disarmed . | . . . . Reprogrammed . | . . . . Reused . | . . . . Traps Extracted . | . . . . Installed . | . . . . Triggered . | . . . . Machines | -11 -10 -9 -9 ---------- Run | Yrd Mat Mat Sto Machines Disabled . | . . . . Max in Single Turn . | . . . . Machines Repaired . | . . . . Machines Dismantled . | . . . . Machines Sabotaged . | . . . . Overloaded Fab Kills . | . . . . Hacking | -11 -10 -9 -9 --------- Run | Yrd Mat Mat Sto Machines Accessed 3 | . 1 . 2 Terminals 3 | . 1 . 2 Fabricators . | . . . . Repair Stations . | . . . . Recycling Units . | . . . . Scanalyzers . | . . . . Garrison Access . | . . . . Total Hacks 4 | . 1 . 3 Successful 3 | . 1 . 2 Failed 1 | . . . 1 Catastrophic 1 | . . . 1 Database Lockouts . | . . . . Manual 1 | . 1 . . Terminals 4 | . 1 . 3 Fabricators . | . . . . Repair Stations . | . . . . Recycling Units . | . . . . Scanalyzers . | . . . . Garrison Access . | . . . . Terminal Hacks 3 | . 1 . 2 Record 1 | . 1 . . Open Door 2 | . . . 2 Fabricator Hacks . | . . . . Repair Station Hacks . | . . . . Recycling Unit Hacks . | . . . . Scanalyzer . | . . . . Garrison Access Hacks . | . . . . Unauthorized Hacks . | . . . . Terminals . | . . . . Fabricators . | . . . . Repair Stations . | . . . . Recycling Units . | . . . . Scanalyzers . | . . . . Garrison Access . | . . . . Data Cores Recovered . | . . . . Used . | . . . . Hacking Detections 1 | . . . 1 Full Trace Events . | . . . . Feedback Events . | . . . . Feedback Blocked . | . . . . Robot Schematics Acquired . | . . . . Robots Built . | . . . . Authchips . | . . . . Time . | . . . . Total Robot Build Rating . | . . . . Part Schematics Acquired . | . . . . Parts Built . | . . . . Authchips . | . . . . Time . | . . . . Total Part Build Rating . | . . . . Parts Repaired . | . . . . Time . | . . . . Parts Recycled . | . . . . Recycled Matter . | . . . . Retrieved Matter . | . . . . Retrieved Components . | . . . . Parts Scanalyzed . | . . . . Part Schematics Acquired . | . . . . Parts Damaged . | . . . . Bothacking | -11 -10 -9 -9 ------------ Run | Yrd Mat Mat Sto Used RIF Installer . | . . . . Robots Hacked . | . . . . Non-combat . | . . . . Combat . | . . . . Robot Hacks Applied . | . . . . Relay Couplers Released . | . . . . Fabnet Peak Effective % . | . . . . Robots Rewired . | . . . . Allies Hacked . | . . . . Hacks Repelled . | . . . . Allies | -11 -10 -9 -9 -------- Run | Yrd Mat Mat Sto Total Allies . | . . . . Largest Group . | . . . . Highest-Rated Group . | . . . . Highest-Rated Ally . | . . . . Total Orders . | . . . . Ally Attacks . | . . . . Total Damage . | . . . . Kills . | . . . . Allies Corrupted . | . . . . Allies Melted . | . . . . Intel | -11 -10 -9 -9 ------- Run | Yrd Mat Mat Sto Active Infowar (turns) . | . . . . Robot Analysis Total . | . . . . Derelict Logs Recovered . | . . . . Drone Launches . | . . . . Drone Recoveries . | . . . . Exploration | -11 -10 -9 -9 ------------- Run | Yrd Mat Mat Sto Turns Passed 1599 | 79 514 779 227 Spaces Moved 956 | 44 231 483 198 Core 11 | 3 . 8 . Treads 523 | 41 231 228 23 Legs . | . . . . Wheels . | . . . . Hover . | . . . . Flight 422 | . . 247 175 Fastest Speed 31 | 50 160 31 31 Average Speed 102 | 152 160 94 45 Slowest Speed 160 | 160 160 160 160 Overloaded Moves . | . . . . Propulsion Burnouts . | . . . . Robots Hopped 1 | . . 1 . Potential Cave-ins . | . . . . Cave-ins Triggered . | . . . . Exploration Rate (%) 29 | 4 41 41 33 Regions Visited 3 Branch Regions 1 Pre-discovered Areas 1 | . . . 1 Known Exits Taken . | . . . . Unknown Exits Taken 3 | 1 1 1 . Scrap Searched . | . . . . Spaces Dug . | . . . . Terrain Destroyed 20 | . . 20 . Melee . | . . . . Projectile . | . . . . AOE 20 | . . 20 . Terrain Rammed . | . . . . Walls Destroyed . | . . . . Machines Disabled . | . . . . Actions | -11 -10 -9 -9 --------- Run | Yrd Mat Mat Sto Total 1350 | 53 314 685 298 Wait 108 | . 21 57 30 Move 951 | 43 230 480 198 Hop 1 | . . 1 . Pick Up 37 | 4 7 18 8 Fast Attach 25 | 6 3 12 4 Attach 9 | . 2 7 . Detach 7 | . . 3 4 Swap 9 | . 3 4 2 Drop 38 | . 6 22 10 Fire 136 | . 37 79 20 Melee . | . . . . Ram . | . . . . Kick . | . . . . Crush 11 | . 5 2 4 Escape Stasis 18 | . . . 18 Rewire . | . . . . Trap . | . . . . Miscellaneous . | . . . . Route ------- -11/Scrapyard -10/Materials -9/Materials (discovered 3 exits: [*Mat] / [*Min] / *Sto) -9/Storage History --------- Turn | Location | Event 23 | -11/Scrapyard | Discovered new exit (range 15) 80 | -11/Scrapyard | Entered Materials 300 | -10/Materials | Build established: Mutant 416 | -10/Materials | Discovered new exit (range 8) 594 | -10/Materials | Entered another Materials area 594 | -9/Materials | Evolved 2 slots: Propulsion x2 835 | -9/Materials | Build established: Scavenger-Mutant 1044 | -9/Materials | Discovered new exit (range 11) 1195 | -9/Materials | Core integrity fell below 50% 1235 | -9/Materials | Lost 8 parts (1p5n2w) 1290 | -9/Materials | Discovered new exit (range 8) 1323 | -9/Materials | Discovered new exit (range 6) 1373 | -9/Materials | Entered Storage 1396 | -9/Storage | Learned location of Armory (-3) 1557 | -9/Storage | Garrison activated, responded to threat 1558 | -9/Storage | Core integrity fell below 20% 1600 | -9/Storage | Destroyed by L-31 Rogue with Katana Last Messages --------------- 01557_ ALERT: Activating Garrison Access S001. 01558_ B-36 Bruiser emerges from the garrison. 01558_ L-31 Rogue emerges from the garrison. 01564_ Slammed into Y-45 Defender. 01568_ Lgt. Nuclear Core destroyed. 01571_ Critical hit (Burn: +37). 01577_ G-34 Mercenary suffers critical hit (Burn). 01580_ Critical hit (Burn: +37). 01580_ Aluminum Leg melted. 01580_ G-34 Mercenary destroyed. 01580_ Switching to secondary target: Y-45 Defender. 01585_ Heat Sink destroyed. 01585_ System corrupted by crushing effect (+1). 01586_ B-36 Bruiser suffers critical hit (Burn). 01595_ B-36 Bruiser destroyed. 01595_ Switching to secondary target: Y-45 Defender. 01596_ Acquired 48 matter. Map ----- +----------------------------------------------------+ | ????????????????????????????????????????? | | ????????????????????????????????????????? | | ????????????????????????????????????????? | | ????????????????????????????????????????? | | ????????????????????????????????????????? | | ????????????????????????????????????????? | | ????????????????????????????????????????? | | ????????????????????????????????????????? | | ????????????????????????????????????????? | | ????????????????????????????????????????? | | ????????????????????????????????????????? | | ????????????????????????????????? ?????? | | ????????????????????????????????? #????? | | ????????????????????????????????? #????? | | ????????????????????????????????# ##???? | | ???????????????????????????????? #???? | | ???????????????????????????????? ????? | | ???????????????????????????????? ????? | | ?????????????????############### ????? | | ?????????????????# !! ## #????? | | ??????????????????# ! " " T# #????? | | ??????????????????# ="G" ## #????? | | ??????????????????# [!%" ## #????? | | ??????????????????# =*! ## ##???? | | ????????????# #############+## #???? | | ????????????# u u=!*@%%= o%* #???? | | ?????????????????#####!% l =Y [= #???? | | ?????????????????????###+####### ! #???? | | ??????????????????????# !### ##???? | | ??????????????????????# #?# #????? | | ??????????????????????#=!= = #?# #????? | | ??????????????????????# ] +? #????? | | ??????????????????????# #?# #????? | | ??????????????????????# #?# #????? | | ??????????????????????# #?# #????? | | ??????????????????????# #?# #????? | | ??????????????????????# #?# #????? | | ??????????????????????# +? #????? | | ??????????????????????# #?#/##????? | | ??????????????????????####+####? ??????? | | ?????????????????????????# #???? ??????? | | ?????????????????????????# #???? ??????? | | ?????????????????????????# #???? ??????? | | ?????????????????????????# #????????????? | | ?????????#+???????????#### #????????????? | | ?????????# ???????????+ #????????????? | | ?????????# ??????????# #????????????? | | ?????????# #####+##### ###??????????? | | ?????????# ####???????? | | ???????###### ##T######??? | +----------------------------------------------------+ Best States ------------- Heat Dissipation 38 Energy Generation 14 Energy Capacity 250 Matter Stores 300 Matter Capacity 300 Sight Range 16 Terrain Scan Density 10 Evasion (%) 63 Recoil Reduction 4 Item Schematics ----------------- None Robot Schematics ------------------ None Fabricated ------------ Nothing Repaired ---------- Nothing Alien Tech Used ----------------- None Achievements -------------- None Challenges ------------ None Game ------ Seed AssembledEnhancedPlatform Manual? 0 Play Time 00:24:29 Cumulative 18.3 hours Start 2025.09.08 @ 17:31:56 End 2025.09.08 @ 17:54:35 Sessions 1 Manual Loads 0 Difficulty Rogue Special Mode None Game No. 78 Rogue 75 Adventurer 3 Explorer 0 Win Type - Total 0 Types 0/0/0/0/0/0/0/0/0/0 Lore% 7 Gallery% 19 Achievement% 18 Wizard Run 0 Options --------- Layout 1 ASCII 0 Keyboard 1 Movement Numpad Keybinds 0 Fullscreen 1 Font 24/Smallcaps Map View 50x35 Zoom Use 0% Tactical HUD 1 Map Filters NONE Filters NONE Steam 1 RUN: 2ef9a71b-5830-4c4f-99f1-1ed79e75a54f